bitfinex/quotes_SOLUSD_20220208
["timestamp","ask_amount","ask_price","bid_price","bid_amount"]
[1644344784985,12.88,111.65,111.56,50.3848366]
[1644344785184,6.0,111.65,111.56,50.4088366]
[1644344785386,6.0,111.65,111.57,0.024]
[1644344785584,6.0,111.65,111.59,13.4406]
[1644344785789,35.60275459,111.68,111.6,35.06993409]
[1644344785985,13.4398,111.67,111.6,35.09393409]
[1644344786185,19.4398,111.67,111.6,35.09393409]
[1644344786387,19.4398,111.67,111.6,35.34393409]
[1644344786785,19.4398,111.67,111.62,13.4394]
[1644344786985,13.4398,111.67,111.62,52.16041041]
[1644344787186,19.4398,111.67,111.62,52.16041041]
[1644344791089,19.4398,111.67,111.62,13.4394]
[1644344791487,19.4398,111.67,111.61,13.4647]
[1644344791688,19.4398,111.67,111.61,13.4407]
[1644344791889,19.4398,111.67,111.6,0.024]
[1644344792087,21.30102975,111.66,111.58,35.77921766]
[1644344792289,49.04615459,111.64,111.59,0.024]
[1644344792491,49.04615459,111.64,111.58,35.77921766]
[1644344792689,19.4434,111.64,111.58,35.77921766]
[1644344793092,19.4434,111.64,111.58,36.02921766]
[1644344793289,19.4434,111.64,111.58,35.77921766]
[1644344793691,19.4434,111.64,111.59,13.4429]
[1644344795597,19.4434,111.64,111.6,46.18889011]
[1644344795794,13.4422,111.65,111.6,59.63069011]
[1644344795996,19.4422,111.65,111.6,59.63069011]
[1644344798527,30.1154254,111.65,111.59,13.4428]
[1644344798700,30.1154254,111.65,111.58,0.024]
[1644344798903,19.4422,111.65,111.58,0.024]
[1644344799901,19.4422,111.65,111.58,34.68762145]
[1644344800103,19.4422,111.65,111.58,34.93762145]
[1644344800703,19.4422,111.65,111.58,48.38182145]
[1644344802103,29.76177933,111.65,111.58,48.38182145]
[1644344802703,19.4422,111.65,111.58,48.38182145]
[1644344808311,6.0,111.65,111.59,2.10775549]
[1644344808513,1.27178344,111.68,111.6,13.4388]
[1644344808711,1.27178344,111.68,111.6,19.6888]
[1644344808913,1.27178344,111.68,111.6,19.7128]
[1644344809111,1.27178344,111.68,111.61,2.10775549]
[1644344809314,1.27178344,111.68,111.62,48.37585819]
[1644344809711,1.27178344,111.68,111.63,13.4383]
[1644344809912,1.27178344,111.68,111.64,42.43281158]
[1644344810112,40.78738517,111.7,111.64,42.43281158]
[1644344810315,54.22488517,111.7,111.64,42.43281158]
[1644344811115,19.4375,111.7,111.64,42.43281158]
[1644344811314,6.0,111.7,111.64,58.22776707]
[1644344811516,19.4358,111.71,111.64,56.12001158]
[1644344811713,19.4358,111.71,111.64,56.14401158]
[1644344812313,31.42327577,111.71,111.64,56.14401158]
[1644344812513,19.4358,111.71,111.64,56.14401158]
[1644344816844,30.34370304,111.71,111.64,56.14401158]
[1644344817544,30.34370304,111.71,111.64,55.89401158]
[1644344817946,30.34370304,111.71,111.64,0.024]
[1644344818146,2.10775549,111.7,111.62,0.024]
[1644344818345,14.98775549,111.7,111.62,0.024]
[1644344818546,13.4408,111.68,111.62,0.024]
[1644344818750,13.4408,111.68,111.61,24.8938]
[1644344818946,13.4408,111.68,111.62,47.52105444]
[1644344819145,19.4408,111.68,111.62,47.52105444]
[1644344820046,10.90790304,111.67,111.62,47.52105444]
[1644344820249,24.34870304,111.67,111.61,38.3343]
[1644344820449,24.34870304,111.67,111.61,13.4645]
[1644344820450,30.34870304,111.67,111.61,13.4645]
[1644344821254,30.34870304,111.67,111.61,51.04059888]
[1644344821950,19.4408,111.67,111.61,51.04059888]
[1644344822152,19.4408,111.67,111.61,51.29059888]
[1644344822854,6.0,111.67,111.61,51.29059888]
[1644344823054,19.4395,111.68,111.61,51.29059888]
[1644344823356,6.0,111.68,111.61,51.29059888]
[1644344823552,22.604,111.69,111.61,51.29059888]
[1644344823553,6.0,111.69,111.61,53.39835437]
[1644344824053,32.3148,111.72,111.61,53.39835437]
[1644344824253,19.4348,111.72,111.65,13.4348]
[1644344824453,19.4348,111.72,111.66,48.03174914]
[1644344824658,26.76631891,111.76,111.66,48.03174914]
[1644344824855,2.51971891,111.76,111.66,60.36774914]
[1644344825052,2.51971891,111.77,111.67,2.10775549]
[1644344825257,2.51971891,111.78,111.67,15.79155549]
[1644344825453,2.51971891,111.79,111.68,12.88]
[1644344825654,42.65223452,111.8,111.68,58.06379789]
[1644344825857,40.11181649,111.8,111.69,2.10775549]
[1644344826055,21.94491891,111.8,111.7,39.89249708]
[1644344826255,8.51971891,111.8,111.7,52.48449708]
[1644344826457,6.0,111.8,111.71,15.53355549]
[1644344826653,8.55776806,111.81,111.71,15.53355549]
[1644344826854,2.55776806,111.81,111.72,2.10775549]
[1644344827055,2.55776806,111.81,111.73,34.83440666]
[1644344827056,0.03804915,111.81,111.73,34.83440666]
[1644344827254,8.55776806,111.82,111.73,43.27640666]
[1644344827457,6.03804915,111.82,111.74,15.52755549]
[1644344827656,0.03804915,111.82,111.75,40.17406213]
[1644344827857,6.0,111.82,111.75,55.41181762]
[1644344828058,6.0,111.82,111.76,2.10775549]
[1644344828257,6.0,111.82,111.76,2.35775549]
[1644344828559,0.03804915,111.83,111.76,2.35775549]
[1644344828758,0.03804915,111.85,111.77,13.4168]
[1644344828962,0.03804915,111.86,111.77,47.74948334]
[1644344829157,0.03804915,111.86,111.77,47.99948334]
[1644344830459,13.45664915,111.86,111.77,47.99948334]
[1644344830660,12.25178741,111.85,111.77,47.99948334]
[1644344831259,18.25178741,111.85,111.77,47.99948334]
[1644344831859,6.0,111.85,111.77,47.99948334]
[1644344832158,0.03804915,111.86,111.77,47.99948334]
[1644344832358,0.03804915,111.87,111.77,61.54458334]
[1644344832559,0.03804915,111.86,111.77,61.54458334]
[1644344832760,54.42700233,111.87,111.77,61.54458334]
[1644344832960,0.03804915,111.86,111.77,61.54458334]
[1644344835663,15.93243116,111.85,111.77,61.54458334]
[1644344836067,21.93243116,111.85,111.77,61.54458334]
[1644344839887,21.43243116,111.85,111.77,61.54458334]
[1644344840390,6.0,111.85,111.77,61.54458334]
[1644344840596,0.03804915,111.86,111.78,2.10775549]
[1644344840890,0.03804915,111.87,111.8,13.4141]
[1644344841091,0.03804915,111.86,111.8,13.4141]
[1644344841390,0.03804915,111.88,111.81,34.74095708]
[1644344841591,13.45324915,111.89,111.81,34.74095708]
[1644344841792,17.86264164,111.88,111.81,34.74095708]
[1644344842188,23.86264164,111.88,111.81,48.15685708]
[1644344842688,23.86264164,111.88,111.81,48.40685708]
[1644344843388,37.27904164,111.88,111.81,13.4159]
[1644344844789,37.27904164,111.88,111.82,47.95709658]
[1644344845594,37.27904164,111.88,111.8,13.4173]
[1644344845793,0.03804915,111.87,111.8,13.4173]
[1644344845989,13.45644915,111.87,111.77,61.8464]
[1644344846191,0.03804915,111.86,111.77,62.0964]
[1644344846592,37.70117561,111.86,111.77,13.5451]
[1644344847094,76.4223,111.84,111.73,2.10560653]
[1644344847298,12.91804915,111.83,111.67,12.88]
[1644344847498,22.69980464,111.83,111.66,12.88]
[1644344847701,20.84841337,111.82,111.69,13.4286]
[1644344847897,12.91804915,111.81,111.7,46.17073037]
[1644344848196,13.4286,111.78,111.7,46.17073037]
[1644344848396,32.16925788,111.78,111.7,46.17073037]
[1644344848598,38.16925788,111.78,111.7,46.17073037]
[1644344848796,40.27701337,111.78,111.7,46.17073037]
[1644344849400,19.4286,111.78,111.7,46.17073037]
[1644344850097,19.4286,111.78,111.7,59.59973037]
[1644344850596,7.71583877,111.77,111.7,59.59973037]
[1644344850797,21.14573877,111.77,111.7,59.59973037]
[1644344850998,19.4299,111.77,111.7,59.59973037]
[1644344851196,19.4299,111.77,111.7,59.84973037]
[1644344851595,19.4299,111.77,111.7,46.17073037]
[1644344851999,26.42194782,111.76,111.69,13.4302]
[1644344852199,42.73494782,111.76,111.64,24.4595]
[1644344852399,12.88,111.75,111.62,59.1597]
[1644344852599,63.664,111.75,111.65,13.4352]
[1644344853000,43.41253652,111.74,111.66,45.49136369]
[1644344853199,62.29253652,111.74,111.66,45.49136369]
[1644344853800,26.42644782,111.72,111.66,45.49136369]
[1644344854200,32.42644782,111.72,111.66,45.49136369]
[1644344855701,19.4352,111.72,111.66,45.49136369]
[1644344858607,6.0,111.72,111.66,58.92516369]
[1644344858808,12.88,111.75,111.66,59.17516369]
[1644344859209,6.0,111.75,111.66,59.17516369]
[1644344859607,53.6607,111.78,111.66,59.17516369]
[1644344860210,17.43954446,111.77,111.66,59.17516369]
[1644344860408,30.86924446,111.77,111.66,59.17516369]
[1644344860608,36.86924446,111.77,111.66,59.17516369]
[1644344861708,12.88,111.76,111.66,59.17516369]
[1644344861909,52.39563988,111.75,111.66,59.17516369]
[1644344862108,19.4314,111.75,111.66,59.17516369]
[1644344863112,65.59216054,111.75,111.66,59.17516369]
[1644344863511,65.59216054,111.75,111.66,65.17516369]
[1644344865214,19.4314,111.75,111.66,65.17516369]
[1644344866243,62.74169215,111.75,111.66,65.17516369]
[1644344866745,19.4314,111.75,111.66,65.17516369]
[1644344867842,6.0,111.75,111.66,67.28077022]
[1644344868047,6.0,111.75,111.66,80.16077022]
[1644344868343,6.0,111.76,111.66,80.16077022]
[1644344868543,6.0,111.78,111.66,128.90647022]
[1644344868743,6.0,111.78,111.66,140.08247022]
[1644344868943,0.03804915,111.79,111.67,89.56]
[1644344869143,0.03804915,111.81,111.71,13.4215]
[1644344869343,0.03804915,111.82,111.72,12.88]
[1644344869544,12.91804915,111.84,111.72,39.46360653]
[1644344869743,0.03804915,111.81,111.72,45.71360653]
[1644344869944,0.03804915,111.83,111.73,2.10560653]
[1644344870145,0.03804915,111.81,111.75,13.4197]
[1644344870344,0.03804915,111.82,111.76,46.29212594]
[1644344870543,0.03804915,111.84,111.76,46.29212594]
[1644344870744,54.26108551,111.85,111.76,46.54212594]
[1644344872048,54.26108551,111.85,111.78,13.4199]
[1644344872049,0.03804915,111.85,111.78,13.4199]
[1644344872247,13.45584915,111.86,111.78,13.6699]
[1644344872545,13.45584915,111.86,111.78,15.77550653]
[1644344872750,0.03804915,111.86,111.78,15.77550653]
[1644344872946,43.80051737,111.88,111.81,13.4151]
[1644344873146,0.03804915,111.86,111.81,58.41863478]
[1644344873346,63.17856822,111.88,111.78,0.25]
[1644344873347,49.76246822,111.88,111.78,0.25]
[1644344873545,0.03804915,111.87,111.78,0.25]
[1644344873947,0.03804915,111.87,111.78,2.35560653]
[1644344874146,0.03804915,111.87,111.8,13.4175]
[1644344874349,0.03804915,111.9,111.8,23.7325]
[1644344874548,0.03804915,111.9,111.8,25.83810653]
[1644344874950,0.03804915,111.9,111.81,36.04493006]
[1644344875146,0.03804915,111.9,111.84,41.40473081]
[1644344875349,50.68458457,111.91,111.84,49.47073081]
[1644344875546,19.45014915,111.91,111.84,49.47073081]
[1644344875750,19.4121,111.91,111.84,49.47073081]
[1644344875947,6.0,111.91,111.84,49.47073081]
[1644344876146,18.91804915,111.92,111.84,49.72073081]
[1644344876548,72.41537204,111.92,111.86,39.90838664]
[1644344876746,72.37732289,111.92,111.86,39.90838664]
[1644344877146,59.49732289,111.92,111.86,39.90838664]
[1644344878747,59.49732289,111.92,111.84,13.4126]
[1644344878949,59.53537204,111.92,111.84,13.6626]
[1644344879952,59.53537204,111.92,111.85,36.60143383]
[1644344880653,19.44884915,111.92,111.85,48.08543383]
[1644344881860,17.0514911,111.91,111.85,48.08543383]
[1644344882058,19.44884915,111.92,111.85,36.60143383]
[1644344882255,13.413,111.9,111.85,36.60143383]
[1644344882655,19.413,111.9,111.85,36.60143383]
[1644344883261,38.25284667,111.9,111.8,44.7124]
[1644344883457,38.25284667,111.9,111.79,24.5732]
[1644344883458,40.36060216,111.9,111.79,24.5732]
[1644344883757,12.9168,111.86,111.79,24.5732]
[1644344883958,12.9168,111.86,111.78,24.5709]
[1644344884155,18.95484915,111.86,111.79,42.81175844]
[1644344884359,18.9168,111.86,111.79,42.81175844]
[1644344884656,18.9168,111.86,111.79,43.06175844]
[1644344884856,18.9168,111.86,111.82,37.02081751]
[1644344885057,6.0,111.86,111.82,37.02081751]
[1644344885257,6.0,111.86,111.82,37.27081751]
[1644344885457,0.03804915,111.88,111.82,37.27081751]
[1644344885658,18.91804915,111.89,111.82,37.27081751]
[1644344886458,32.33134915,111.89,111.82,50.68601751]
[1644344886659,19.45134915,111.89,111.82,50.68601751]
[1644344887360,6.03804915,111.89,111.82,59.28201751]
[1644344887560,0.03804915,111.89,111.82,67.38762404]
[1644344887760,0.03804915,111.92,111.82,67.38762404]
[1644344887961,0.03804915,111.89,111.82,67.38762404]
[1644344888160,0.03804915,111.91,111.82,67.38762404]
[1644344888361,0.03804915,111.92,111.82,67.38762404]
[1644344888560,0.03804915,111.91,111.82,67.38762404]
[1644344888860,13.44864915,111.92,111.82,67.38762404]
[1644344889060,0.03804915,111.91,111.82,67.38762404]
[1644344891263,0.03804915,111.92,111.82,80.26762404]
[1644344891467,0.03804915,111.91,111.82,80.26762404]
[1644344891664,0.03804915,111.92,111.85,0.32318623]
[1644344891864,0.03804915,111.91,111.88,34.84656001]
[1644344892065,0.03804915,111.92,111.89,6.06439994]
[1644344892291,239.60746081,112.0,111.89,8.42000647]
[1644344892466,239.60746081,112.0,111.89,14.42000647]
[1644344892666,239.60746081,112.0,111.9,2.10560653]
[1644344893065,245.60746081,112.0,111.9,8.35560653]
[1644344893269,245.60746081,112.0,111.91,40.45033066]
[1644344893467,245.60746081,112.0,111.91,49.62233066]
[1644344893667,245.60746081,112.0,111.91,49.87233066]
[1644344893865,245.60746081,112.0,111.92,13.3991]
[1644344894668,288.00359361,112.0,111.93,41.80346015]
[1644344895767,301.40599361,112.0,111.93,41.80346015]
[1644344895970,301.40599361,112.0,111.92,13.3991]
[1644344896169,2.10775549,111.99,111.9,13.4038]
[1644344896573,8.10775549,111.99,111.87,47.1904]
[1644344896771,80.03745549,111.99,111.87,0.25]
[1644344896973,14.00765154,111.98,111.85,94.80175116]
[1644344897172,26.2858,111.97,111.88,38.63512054]
[1644344897378,34.40958153,111.96,111.88,38.63512054]
[1644344897574,6.0,111.96,111.88,38.63512054]
[1644344898173,19.4058,111.97,111.88,38.63512054]
[1644344898374,19.4058,111.97,111.88,38.88512054]
[1644344898579,64.46941788,111.97,111.88,38.88512054]
[1644344898776,64.46941788,111.97,111.9,42.32758541]
[1644344898974,19.4058,111.97,111.9,42.32758541]
[1644344899175,6.0,111.97,111.9,42.57758541]
[1644344899575,19.4046,111.98,111.9,42.57758541]
[1644344899797,19.4046,111.98,111.9,42.32758541]
[1644344899999,65.15379635,111.98,111.9,42.32758541]
[1644344900697,65.15379635,111.98,111.9,55.73248541]
[1644344901104,65.15379635,111.98,111.9,55.98248541]
[1644344901508,19.4046,111.98,111.9,55.98248541]
[1644344902100,6.0,111.98,111.9,55.98248541]
[1644344902299,6.0,111.98,111.9,58.08472718]
[1644344902499,6.0,111.99,111.9,58.08472718]
[1644344902700,253.01056081,112.0,111.9,64.08472718]
[1644344903501,239.60746081,112.0,111.9,64.08472718]
[1644344903704,245.60746081,112.0,111.9,64.08472718]
[1644344903903,245.60746081,112.0,111.9,76.11372718]
[1644344905202,263.69788243,112.0,111.9,76.11372718]
[1644344905402,263.69788243,112.0,111.9,61.98248541]
[1644344905902,277.09998243,112.0,111.9,61.98248541]
[1644344906902,277.09998243,112.0,111.9,55.98248541]
[1644344907201,277.09998243,112.0,111.9,42.57758541]
[1644344907202,279.20773792,112.0,111.9,42.57758541]
[1644344907401,281.72745683,112.0,111.9,42.57758541]
[1644344907802,279.20773792,112.0,111.9,42.57758541]
[1644344908301,281.72745683,112.0,111.9,42.57758541]
[1644344908504,279.20773792,112.0,111.9,42.57758541]
[1644344908703,281.72745683,112.0,111.9,55.98248541]
[1644344911307,281.72745683,112.0,111.9,55.73248541]
[1644344912710,281.72745683,112.0,111.9,55.98248541]
[1644344913910,255.52927972,112.0,111.9,55.98248541]
[1644344914112,253.00956081,112.0,111.9,64.08472718]
[1644344914310,239.60746081,112.0,111.9,166.52472718]
[1644344914512,239.60746081,112.0,111.9,76.96472718]
[1644344914709,239.60746081,112.0,111.9,70.96472718]
[1644344914910,42.20260949,111.99,111.9,55.98248541]
[1644344915110,48.20260949,111.99,111.9,55.98248541]
[1644344915310,50.31036498,111.99,111.9,55.98248541]
[1644344915511,6.0,111.99,111.9,55.98248541]
[1644344915910,248.12717972,112.0,111.9,55.98248541]
[1644344916611,40.98550692,111.99,111.9,55.98248541]
[1644344916812,54.38900692,111.99,111.9,55.98248541]
[1644344917011,62.90872583,111.99,111.9,55.98248541]
[1644344917611,5.05593358,111.98,111.9,55.98248541]
[1644344918111,11.05593358,111.98,111.9,55.98248541]
[1644344918311,15.41827742,111.97,111.9,55.98248541]
[1644344918713,21.41827742,111.97,111.9,55.98248541]
[1644344919614,37.34319633,111.97,111.9,55.98248541]
[1644344920815,37.34319633,111.97,111.9,13.4049]
[1644344921215,2.54129821,111.96,111.9,13.6549]
[1644344921416,37.34319633,111.97,111.9,13.4049]
[1644344921816,36.54801549,111.95,111.9,13.4049]
[1644344923417,2.51971891,111.96,111.9,13.4049]
[1644344923617,5.06117065,111.96,111.9,13.4049]
[1644344924519,5.06117065,111.96,111.91,41.66584192]
[1644344924717,11.06117065,111.96,111.91,41.66584192]
[1644344924918,8.51971891,111.96,111.91,55.06994192]
[1644344925217,2.51971891,111.97,111.91,55.31994192]
[1644344925418,2.51971891,111.98,111.91,57.41700877]
[1644344927122,5.06063986,111.99,111.91,57.41700877]
[1644344927719,242.12717972,112.0,111.91,63.41700877]
[1644344927921,239.60746081,112.0,111.91,63.41700877]
[1644344928120,245.60746081,112.0,111.91,63.41700877]
[1644344929823,245.60746081,112.0,111.91,152.97700877]
[1644344930023,245.60746081,112.0,111.92,12.88]
[1644344930221,1.26966081,111.99,111.94,13.3967]
[1644344930422,1.26966081,111.99,111.94,23.6817]
[1644344930723,246.87712162,112.0,111.95,43.69561255]
[1644344931222,246.87712162,112.0,111.95,43.94561255]
[1644344931726,246.87712162,112.0,111.96,13.3978]
[1644344932123,246.87712162,112.0,111.96,13.6478]
[1644344932326,246.87712162,112.0,111.97,44.53807594]
[1644344932525,246.87712162,112.0,111.98,6.06439994]
[1644344933229,240.87712162,112.0,111.99,40.87871126]
[1644344933634,239.60746081,112.0,111.99,40.87871126]
[1644344935030,239.60746081,112.0,111.98,29.47679994]
[1644344935230,239.60746081,112.0,111.98,29.72679994]
[1644344936031,239.60746081,112.0,111.98,68.76488111]
[1644344937432,117.28199344,112.0,111.98,68.76488111]
[1644344937635,117.28199344,112.0,111.98,70.86182298]
[1644344937837,97.70719344,112.0,111.98,70.86182298]
[1644344938131,97.70719344,112.0,111.98,74.76488111]
[1644344938331,97.70719344,112.0,111.98,35.72679994]
[1644344938532,97.70719344,112.0,111.98,19.70979994]
[1644344940432,97.70719344,112.0,111.98,19.45979994]
[1644344940633,97.70719344,112.0,111.98,6.06439994]
[1644344941059,97.70719344,112.0,111.93,69.4048]
[1644344941232,97.70719344,112.0,111.93,44.6602]
[1644344941634,97.70719344,112.0,111.95,13.3991]
[1644344942533,97.70719344,112.0,111.96,44.14404445]
[1644344942732,97.70719344,112.0,111.96,57.79244445]
[1644344944032,88.19174392,112.0,111.96,66.94244445]
[1644344946937,88.19174392,112.0,111.96,57.79244445]
[1644344947738,88.19174392,112.0,111.96,57.54244445]
[1644344949043,88.19174392,112.0,111.96,57.79244445]
[1644344950648,88.19174392,112.0,111.96,63.79244445]
[1644344951050,126.9230959,112.0,111.96,63.54244445]
[1644344951251,126.9230959,112.0,111.96,19.3984]
[1644344951548,126.9230959,112.0,111.96,13.3984]
[1644344952646,126.9230959,112.0,111.96,13.6484]
[1644344953053,126.9230959,112.0,111.96,13.3984]
[1644344953250,126.9230959,112.0,111.93,44.6609]
[1644344953449,126.9230959,112.0,111.95,12.94851086]
[1644344953649,134.19275671,112.0,111.91,22.9035]
[1644344954050,134.19275671,112.0,111.92,40.98678608]
[1644344954648,134.19275671,112.0,111.92,47.23678608]
[1644344954853,102.86240473,112.0,111.94,54.48096237]
[1644344955052,51.56585873,112.0,111.95,89.56]
[1644344955250,47.62589792,112.0,111.96,12.88]
[1644344955449,0.1,112.04,111.97,47.0]
[1644344955652,0.1,112.04,111.97,142.56]
[1644344955850,0.1,112.04,111.98,0.35019791]
[1644344956066,0.1,112.04,111.98,15.31169462]
[1644344956265,0.1,112.04,111.99,13.39]
[1644344956664,0.1,112.04,111.99,13.64]
[1644344957264,47.139283,112.04,111.99,13.64]
[1644344959565,47.139283,112.04,111.99,13.39]
[1644344959766,48.40894381,112.04,111.99,13.39]
[1644344959967,48.40894381,112.04,111.99,12.39]
[1644344960167,48.40894381,112.04,111.99,12.64]
[1644344960366,47.139283,112.04,111.99,12.64]
[1644344966078,0.1,112.04,111.99,26.96049671]
[1644344966279,0.1,112.04,111.99,39.84049671]
[1644344968079,0.1,112.04,111.99,37.759]
[1644344968281,0.1,112.04,111.99,25.52]
[1644344969882,0.1,112.04,111.99,31.52]
[1644344970085,0.1,112.04,111.99,25.52]
[1644344970683,0.1,112.04,111.99,31.52]
[1644344970882,0.1,112.04,111.99,25.52]
[1644344971285,0.1,112.04,112.01,13.3895]
[1644344971485,0.1,112.04,112.02,6.06439994]
[1644344971684,0.1,112.04,112.02,27.02603418]
[1644344971885,0.1,112.04,112.02,27.27603418]
[1644344972284,0.1,112.04,112.02,117.91890495]
[1644344972486,0.1,112.04,112.03,13.3874]
[1644344972684,1.71775725,112.12,112.03,21.28223477]
[1644344972887,2.51971891,112.15,112.07,0.3115534]
[1644344973086,2.51971891,112.18,112.08,12.88]
[1644344973286,2.51971891,112.19,112.11,0.30537064]
[1644344973589,0.22448377,112.25,112.12,12.88]
[1644344973590,4.6274744,112.24,112.12,12.88]
[1644344973785,29.0848744,112.24,112.13,12.88]
[1644344974186,29.0848744,112.24,112.13,13.13]
[1644344974584,40.49579953,112.23,112.14,13.372]
[1644344974786,13.3761,112.22,112.14,13.372]
[1644344974986,13.3761,112.22,112.09,26.91173612]
[1644344975187,18.0035744,112.22,112.12,0.25]
[1644344975386,2.10775549,112.21,112.12,0.25]
[1644344975686,2.10775549,112.21,112.12,13.6274]
[1644344975886,45.01233394,112.2,112.12,13.6274]
[1644344976088,58.39083394,112.2,112.12,13.6274]
[1644344976587,64.39083394,112.2,112.12,13.6274]
[1644344976786,64.39083394,112.2,112.12,0.25]
[1644344977187,64.39083394,112.2,112.1,6.25]
[1644344977387,64.39083394,112.2,112.1,0.25]
[1644344977587,41.04271298,112.18,112.08,57.478]
[1644344977786,54.42241298,112.18,112.08,57.478]
[1644344977989,62.53016847,112.18,112.09,13.38]
[1644344978287,62.53016847,112.18,112.07,12.88]
[1644344978488,62.53016847,112.18,112.05,12.88]
[1644344978692,62.53016847,112.18,112.04,12.88]
[1644344978887,62.53016847,112.18,112.03,15.2471155]
[1644344979087,62.53016847,112.18,112.04,13.3866]
[1644344979287,12.88,112.17,112.04,13.3866]
[1644344979488,13.3856,112.14,112.04,13.3866]
[1644344979686,19.3856,112.14,112.04,13.3866]
[1644344979888,44.22905998,112.13,112.04,13.3866]
[1644344980090,44.22905998,112.13,112.02,12.88]
[1644344980091,50.22905998,112.13,112.02,12.88]
[1644344980288,50.22905998,112.13,112.03,16.80909646]
[1644344980689,50.22905998,112.13,112.03,17.05909646]
[1644344980891,50.22905998,112.13,112.03,13.6379]
[1644344981791,38.60151917,112.1,112.03,13.6379]
[1644344981990,44.60151917,112.1,112.03,13.6379]
[1644344982395,44.60151917,112.1,112.02,13.3892]
[1644344982589,56.13451917,112.1,112.0,28.1271155]
[1644344982789,2.10775549,112.09,111.98,74.83730776]
[1644344983190,8.10775549,112.09,111.98,74.83730776]
[1644344983390,45.63407195,112.08,111.99,35.57235169]
[1644344983593,45.63407195,112.08,112.0,26.2707]
[1644344983791,45.63407195,112.08,112.0,26.5207]
[1644344984593,45.63407195,112.08,112.0,28.59709226]
[1644344985192,45.63407195,112.08,112.01,5.85780859]
[1644344985391,45.63407195,112.08,112.01,19.24740859]
[1644344985594,45.63407195,112.08,112.01,19.49740859]
[1644344986293,45.63407195,112.08,112.01,13.6396]
[1644344988595,45.63407195,112.08,112.01,19.6396]
[1644344988795,45.63407195,112.08,112.01,15.71095576]
[1644344989194,45.63407195,112.08,112.01,21.71095576]
[1644344989397,45.63407195,112.08,112.01,15.71095576]
[1644344989594,45.63407195,112.08,112.01,21.71095576]
[1644344989816,45.63407195,112.08,112.01,15.71095576]
[1644344990401,45.63407195,112.08,112.01,21.71095576]
[1644344990802,45.63407195,112.08,112.01,15.71095576]
[1644344992603,45.63407195,112.08,112.01,15.46095576]
[1644344992805,54.51807195,112.08,112.0,1.17478992]
[1644344993108,2.10775549,112.07,112.0,0.17478992]
[1644344993313,49.41495549,112.07,112.0,0.17478992]
[1644344993510,55.41495549,112.07,112.0,0.17478992]
[1644344993706,49.05644257,112.06,112.0,0.17478992]
[1644344993906,93.71284257,112.06,112.0,0.17478992]
[1644344994107,41.67481396,112.04,112.0,0.17478992]
[1644344994609,47.67481396,112.04,112.0,0.17478992]
[1644344995910,6.0,112.04,112.0,0.17478992]
[1644344996107,47.3072,112.07,112.0,0.17478992]
[1644344996307,37.94511891,112.13,112.0,0.17478992]
[1644344996510,49.0442,112.12,112.0,0.17478992]
[1644344996908,45.10827985,112.08,112.0,13.05478992]
[1644344997111,45.10827985,112.08,112.0,19.05478992]
[1644344997326,45.10827985,112.08,112.0,19.30478992]
[1644344997526,45.10827985,112.08,112.0,13.30478992]
[1644344997726,45.10827985,112.08,112.0,32.69578992]
[1644344997926,51.10827985,112.08,112.0,32.69578992]
[1644344998127,51.10827985,112.08,112.0,26.69578992]
[1644344999026,6.0,112.08,112.03,13.388]
[1644344999226,6.0,112.1,112.03,13.638]
[1644344999529,62.4311,112.12,112.03,13.638]
[1644345000126,35.5799462,112.11,112.03,13.638]
[1644345000327,48.9669462,112.11,112.03,13.638]
[1644345000931,35.5799462,112.11,112.03,20.29959064]
[1644345001330,35.5799462,112.11,112.03,35.2509464]
[1644345001532,35.5799462,112.11,112.03,34.58935576]
[1644345001728,35.5799462,112.11,112.03,32.518]
[1644345002028,35.5799462,112.11,112.03,26.518]
[1644345002232,32.3799708,112.11,112.03,26.518]
[1644345003432,32.3799708,112.11,112.05,13.3851]
[1644345003832,32.3799708,112.11,112.05,13.6351]
[1644345004735,31.8799708,112.11,112.05,13.6351]
[1644345005836,48.4043,112.15,112.05,13.6351]
[1644345006134,54.4043,112.15,112.05,25.8061]
[1644345006735,39.22841006,112.14,112.06,35.03885845]
[1644345006936,67.7866,112.15,112.07,13.3829]
[1644345007136,54.4043,112.15,112.07,13.3829]
[1644345007339,54.4043,112.15,112.07,13.6329]
[1644345007938,48.38692458,112.14,112.07,13.6329]
[1644345008137,48.38692458,112.14,112.08,10.09127723]
[1644345008336,48.38692458,112.14,112.09,13.3807]
[1644345008538,48.4043,112.15,112.09,13.3807]
[1644345008737,13.3811,112.16,112.09,13.6307]